{"text_format":"1","workbook":"xlsx","n_sheets":10,"sheets":["人類の進化","人類の進化・処理","金属利用の歴史","金属利用の歴史・処理","金属の性質","金属の性質・処理","身のまわりの金属","身のまわりの金属・処理","さび","さび・処理"],"not_rendered":{"charts":0,"images":4,"macros":1,"external_links":0,"defined_names":0,"comments":0,"pivot_tables":0},"unopened":[],"bounds":{"document_bytes":16777216,"sheet_cells":100000,"rows_first":2000,"rows_last":500,"rows_between":2000,"halvings":0,"cell_chars":16384,"cell_head_chars":4096},"cells_cut":0,"cells_raw":0,"read":"whole","date_system":"1900"}

{"sheet":"人類の進化","index":0,"n_rows":33,"n_cols":12,"rows_kept":33,"cut":false,"hidden":false,"merged":[[26,2,30,7],[32,2,34,7],[1,2,1,4],[3,2,3,3],[4,2,4,3],[5,2,5,3],[6,2,6,3],[2,2,2,3],[8,2,9,7],[11,2,12,7],[14,2,15,7],[17,2,19,7],[21,2,24,7]]}
[]
[null,null,"人類の進化＆文明",null,null,null,null,null,"得点",{"$f":"COUNTIF(L4:L33,\"〇\")","v":0},null,"/13"]
[null,"（１）"]
[null,1,"アウストラロピテクス",null,null,null,null,null,"ア",null,null,{"$f":"人類の進化・処理!L4","v":"×"}]
[null,2,"ジャワ原人",null,null,null,null,null,"イ",null,null,{"$f":"人類の進化・処理!L5","v":"×"}]
[null,3,"ネアンデルタール人",null,null,null,null,null,"ウ",null,null,{"$f":"人類の進化・処理!L6","v":"×"}]
[null,4,"クロマニヨン人",null,null,null,null,null,"エ",null,null,{"$f":"人類の進化・処理!L7","v":"×"}]
[]
[null,"（２）","ネアンデルタール人は約（オ）万年前に現れ、４～３万年前に絶滅したと考えられている化石人類である。ヨーロッパから西アジアに広く分布していた。",null,null,null,null,null,"オ",null,null,{"$f":"人類の進化・処理!L9","v":"×"}]
[]
[]
[null,"（３）","ネアンデルタール人には、眼窩上方に見られる、庇（ひさし）のように張り出した部分、いわゆる（カ）があるが、現生人類・ホモ・サピエンスにはない。\n",null,null,null,null,null,"カ",null,null,{"$f":"人類の進化・処理!L12","v":"×"}]
[]
[]
[null,"（４）"," ネアンデルタール人は、明らかに（キ）された人骨が見つかっており、家族や部落の仲間の死を悼む心を持っていた。",null,null,null,null,null,"キ",null,null,{"$f":"人類の進化・処理!L15","v":"×"}]
[]
[]
[null,"（５）","クロマニョン人は色彩豊かな壁画や、繊細な彫刻を作っていました。中でも、フランスのモンティニャックに現存し、世界遺産に登録されている(ク)が有名です。\n",null,null,null,null,null,"ク",null,null,{"$f":"人類の進化・処理!L18","v":"×"}]
[]
[]
[]
[null,"（６）","旧石器時代は、（ケ）万年前から紀元前1万年の間とされている。ホモ・ハビリスが石で道具を作り始めた時期でもある。考古学的にいうと、打ち欠かれた石の道具である（コ）石器という単純な石器を使用して狩猟・採集生活を営んでいた時代でもある。\n",null,null,null,null,null,"ケ",null,null,{"$f":"人類の進化・処理!L22","v":"×"}]
[]
[null,null,null,null,null,null,null,null,"コ",null,null,{"$f":"人類の進化・処理!L24","v":"×"}]
[]
[]
[null,"（７）","新石器時代地域によって違うが、オリエントの肥沃な三日月地帯では、紀元前8000年頃に、中米やメソポタミアでは、紀元前6000年頃に始まった。磨かれた石の道具である（サ）石器を主な道具としていた時代でもある。この時期のもっとも重要な出来事は（シ）の開始であり、さらにこれに伴って土器の使用、農耕や家畜の飼育が始まり、自給自足の生活へと変わった。\n",null,null,null,null,null,"サ",null,null,{"$f":"人類の進化・処理!L27","v":"×"}]
[]
[null,null,null,null,null,null,null,null,"シ",null,null,{"$f":"人類の進化・処理!L29","v":"×"}]
[]
[]
[]
[null,"（８）","青銅器時代は多くの文明において（ス）形成の開始された時期に当たり、世界最古の文字が発明されたのもこの時期にあたる。このため、各文明においては先史時代と歴史時代の両面を持つ。",null,null,null,null,null,"ス",null,null,{"$f":"人類の進化・処理!L33","v":"×"}]

{"sheet":"人類の進化・処理","index":1,"n_rows":33,"n_cols":18,"rows_kept":33,"cut":false,"hidden":true,"merged":[[32,2,34,7],[6,2,6,3],[8,2,9,7],[11,2,12,7],[14,2,15,7],[17,2,19,7],[21,2,24,7],[26,2,30,7],[1,2,1,4],[2,2,2,3],[3,2,3,3],[4,2,4,3],[5,2,5,3]]}
[]
[null,null,"人類の進化＆文明",null,null,null,null,null,"得点",{"$f":"COUNTIF(L4:L33,\"〇\")","v":0},null,"/13"]
[null,"（１）"]
[null,1,"アウストラロピテクス",null,null,null,null,null,"ア","猿人",null,{"$f":"IF(人類の進化!J4=人類の進化・処理!J4,\"〇\",\"×\")","v":"×"},null,"猿人","原人","旧人","新人","現代人"]
[null,2,"ジャワ原人",null,null,null,null,null,"イ","原人",null,{"$f":"IF(人類の進化!J5=人類の進化・処理!J5,\"〇\",\"×\")","v":"×"}]
[null,3,"ネアンデルタール人",null,null,null,null,null,"ウ","旧人",null,{"$f":"IF(人類の進化!J6=人類の進化・処理!J6,\"〇\",\"×\")","v":"×"}]
[null,4,"クロマニヨン人",null,null,null,null,null,"エ","新人",null,{"$f":"IF(人類の進化!J7=人類の進化・処理!J7,\"〇\",\"×\")","v":"×"}]
[]
[null,"（２）","ネアンデルタール人は約（オ）万年前に現れ、４～３万年前に絶滅したと考えられている化石人類である。ヨーロッパから西アジアに広く分布していた。",null,null,null,null,null,"オ",20,null,{"$f":"IF(人類の進化!J9=人類の進化・処理!J9,\"〇\",\"×\")","v":"×"},null,10,20,30,40,50]
[]
[]
[null,"（３）","ネアンデルタール人には、眼窩上方に見られる、庇（ひさし）のように張り出した部分、いわゆる（カ）があるが、現生人類・ホモ・サピエンスにはない。\n",null,null,null,null,null,"カ","眼窩上隆起",null,{"$f":"IF(人類の進化!J12=人類の進化・処理!J12,\"〇\",\"×\")","v":"×"},null,"眼窩上陥没","眼窩上隆起","眼窩上突起","眼窩上拡大","眼窩上縮小"]
[]
[]
[null,"（４）"," ネアンデルタール人は、明らかに（キ）された人骨が見つかっており、家族や部落の仲間の死を悼む心を持っていた。",null,null,null,null,null,"キ","埋葬",null,{"$f":"IF(人類の進化!J15=人類の進化・処理!J15,\"〇\",\"×\")","v":"×"},null,"埋葬","遺棄","焼却","納骨","散骨"]
[]
[]
[null,"（５）","クロマニョン人は色彩豊かな壁画や、繊細な彫刻を作っていました。中でも、フランスのモンティニャックに現存し、世界遺産に登録されている(ク)が有名です。\n",null,null,null,null,null,"ク","ラスコー洞窟の壁画",null,{"$f":"IF(人類の進化!J18=人類の進化・処理!J18,\"〇\",\"×\")","v":"×"},null,"パリ洞窟の壁画","ラスコー洞窟の壁画","ネアンデル谷の壁画","スペイン洞窟の壁画","スイス洞窟の壁画"]
[]
[]
[]
[null,"（６）","旧石器時代は、（ケ）万年前から紀元前1万年の間とされている。ホモ・ハビリスが石で道具を作り始めた時期でもある。考古学的にいうと、打ち欠かれた石の道具である（コ）石器という単純な石器を使用して狩猟・採集生活を営んでいた時代でもある。\n",null,null,null,null,null,"ケ",200,null,{"$f":"IF(人類の進化!J22=人類の進化・処理!J22,\"〇\",\"×\")","v":"×"},null,100,200,300,400,500]
[]
[null,null,null,null,null,null,null,null,"コ","打製石器",null,{"$f":"IF(人類の進化!J24=人類の進化・処理!J24,\"〇\",\"×\")","v":"×"},null,"打製石器","磨製石器","新石器","旧石器","手製石器"]
[]
[]
[null,"（７）","新石器時代地域によって違うが、オリエントの肥沃な三日月地帯では、紀元前8000年頃に、中米やメソポタミアでは、紀元前6000年頃に始まった。磨かれた石の道具である（サ）石器を主な道具としていた時代でもある。この時期のもっとも重要な出来事は（シ）の開始であり、さらにこれに伴って土器の使用、農耕や家畜の飼育が始まり、自給自足の生活へと変わった。\n",null,null,null,null,null,"サ","磨製石器",null,{"$f":"IF(人類の進化!J27=人類の進化・処理!J27,\"〇\",\"×\")","v":"×"}]
[]
[null,null,null,null,null,null,null,null,"シ","定住",null,{"$f":"IF(人類の進化!J29=人類の進化・処理!J29,\"〇\",\"×\")","v":"×"},null,"遊牧","定住"]
[]
[]
[]
[null,"（８）","青銅器時代は多くの文明において（ス）形成の開始された時期に当たり、世界最古の文字が発明されたのもこの時期にあたる。このため、各文明においては先史時代と歴史時代の両面を持つ。",null,null,null,null,null,"ス","国家",null,{"$f":"IF(人類の進化!J33=人類の進化・処理!J33,\"〇\",\"×\")","v":"×"},null,"集落","国家"]

{"sheet":"金属利用の歴史","index":2,"n_rows":27,"n_cols":12,"rows_kept":27,"cut":false,"hidden":false,"merged":[[25,2,26,7],[10,2,11,7],[13,2,14,7],[16,2,17,7],[19,2,20,7],[22,2,23,7],[6,2,6,3],[1,2,1,4],[2,2,2,3],[3,2,3,3],[4,2,4,3],[5,2,5,3]]}
[]
[null,null,"金属利用の歴史"]
[null,1,null,null,null,null,null,null,"得点",{"$f":"COUNTIF(L5:L36,\"〇\")","v":0},null,"/13"]
[]
[null,null,null,null,null,null,null,null,"（１）",null,null,{"$f":"金属利用の歴史・処理!L5","v":"×"}]
[null,null,null,null,null,null,null,null,"（２）",null,null,{"$f":"金属利用の歴史・処理!L6","v":"×"}]
[null,null,null,null,null,null,null,null,"（３）",null,null,{"$f":"金属利用の歴史・処理!L7","v":"×"}]
[null,null,null,null,null,null,null,null,"（４）",null,null,{"$f":"金属利用の歴史・処理!L8","v":"×"}]
[]
[]
[null,2,"メソポタミアやエジプトでは紀元前3500年ごろから（ア）が使われるようになりました。",null,null,null,null,null,"ア",null,null,{"$f":"金属利用の歴史・処理!L11","v":"×"}]
[]
[]
[null,3,"人類が最初に用いた原料は精錬過程が不要な「イ（隕鉄）」であったと考えられています。",null,null,null,null,null,"イ",null,null,{"$f":"金属利用の歴史・処理!L14","v":"×"}]
[]
[]
[null,4,"日本の製鉄は「ウ」とよばれる製鉄技術を用い、中国地方を中心に九州から近畿地方で盛んになり、しだいに関東以北に広がりました。",null,null,null,null,null,"ウ",null,null,{"$f":"金属利用の歴史・処理!L17","v":"×"}]
[]
[]
[null,5,"化学基礎より（酸化＆還元）酸素と化合することを（エ）といい、酸素を失うことを（オ）という。",null,null,null,null,null,"エ",null,null,{"$f":"金属利用の歴史・処理!L20","v":"×"}]
[null,null,null,null,null,null,null,null,"オ",null,null,{"$f":"金属利用の歴史・処理!L21","v":"×"}]
[]
[null,6,"１． 酸素と反応しやすい金属を（カ）という。また、酸素と反応しにくい金属を（キ）という。",null,null,null,null,null,"カ",null,null,{"$f":"金属利用の歴史・処理!L23","v":"×"}]
[null,null,null,null,null,null,null,null,"キ",null,null,{"$f":"金属利用の歴史・処理!L24","v":"×"}]
[]
[null,7,"２． 密度が4または5 g/cm3 以下の金属を（ク）という。それより大きい金属を（ケ）という。",null,null,null,null,null,"ク",null,null,{"$f":"金属利用の歴史・処理!L26","v":"×"}]
[null,null,null,null,null,null,null,null,"ケ",null,null,{"$f":"金属利用の歴史・処理!L27","v":"×"}]

{"sheet":"金属利用の歴史・処理","index":3,"n_rows":27,"n_cols":18,"rows_kept":27,"cut":false,"hidden":true,"merged":[[25,2,26,7],[1,2,1,4],[2,2,2,3],[3,2,3,3],[4,2,4,3],[5,2,5,3],[6,2,6,3],[10,2,11,7],[13,2,14,7],[16,2,17,7],[19,2,20,7],[22,2,23,7]]}
[]
[null,null,"金属利用の歴史"]
[null,1,null,null,null,null,null,null,"得点",{"$f":"COUNTIF(L5:L36,\"〇\")","v":0},null,"/13"]
[]
[null,null,null,null,null,null,null,null,"（１）","鉄器時代",null,{"$f":"IF(金属利用の歴史!J5=金属利用の歴史・処理!J5,\"〇\",\"×\")","v":"×"},null,"旧石器時代","新石器時代","青銅器時代","鉄器時代","黄金時代"]
[null,null,null,null,null,null,null,null,"（２）","青銅器時代",null,{"$f":"IF(金属利用の歴史!J6=金属利用の歴史・処理!J6,\"〇\",\"×\")","v":"×"}]
[null,null,null,null,null,null,null,null,"（３）","新石器時代",null,{"$f":"IF(金属利用の歴史!J7=金属利用の歴史・処理!J7,\"〇\",\"×\")","v":"×"}]
[null,null,null,null,null,null,null,null,"（４）","旧石器時代",null,{"$f":"IF(金属利用の歴史!J8=金属利用の歴史・処理!J8,\"〇\",\"×\")","v":"×"}]
[]
[]
[null,2,"メソポタミアやエジプトでは紀元前3500年ごろから（ア）が使われるようになりました。",null,null,null,null,null,"ア","青銅器",null,{"$f":"IF(金属利用の歴史!J11=金属利用の歴史・処理!J11,\"〇\",\"×\")","v":"×"},null,"青銅器","金","鉄器","石器","銀"]
[]
[]
[null,3,"人類が最初に用いた原料は精錬過程が不要な「イ（隕鉄）」であったと考えられています。",null,null,null,null,null,"イ","隕石",null,{"$f":"IF(金属利用の歴史!J14=金属利用の歴史・処理!J14,\"〇\",\"×\")","v":"×"},null,"隕石","落石","流石","岩石"]
[]
[]
[null,4,"日本の製鉄は「ウ」とよばれる製鉄技術を用い、中国地方を中心に九州から近畿地方で盛んになり、しだいに関東以北に広がりました。",null,null,null,null,null,"ウ","たたら",null,{"$f":"IF(金属利用の歴史!J17=金属利用の歴史・処理!J17,\"〇\",\"×\")","v":"×"},null,"たたら","たいら","たから","ちから"]
[]
[]
[null,5,"化学基礎より、酸素と化合することを（エ）といい、酸素を失うことを（オ）という。（エ）と（オ）は同時に起こる。",null,null,null,null,null,"エ","酸化",null,{"$f":"IF(金属利用の歴史!J20=金属利用の歴史・処理!J20,\"〇\",\"×\")","v":"×"},null,"酸化","還元","中和","融解"]
[null,null,null,null,null,null,null,null,"オ","還元",null,{"$f":"IF(金属利用の歴史!J21=金属利用の歴史・処理!J21,\"〇\",\"×\")","v":"×"}]
[]
[null,6,"１． 酸素と反応しやすい金属を（カ）という。また、酸素と反応しにくい金属を（キ）という。",null,null,null,null,null,"カ","卑金属",null,{"$f":"IF(金属利用の歴史!J23=金属利用の歴史・処理!J23,\"〇\",\"×\")","v":"×"},null,"卑金属","貴金属","軽金属","重金属"]
[null,null,null,null,null,null,null,null,"キ","貴金属",null,{"$f":"IF(金属利用の歴史!J24=金属利用の歴史・処理!J24,\"〇\",\"×\")","v":"×"}]
[]
[null,7,"２． 密度が4または5 g/cm3 以下の金属を（ク）という。それより大きい金属を（ケ）という。",null,null,null,null,null,"ク","軽金属",null,{"$f":"IF(金属利用の歴史!J26=金属利用の歴史・処理!J26,\"〇\",\"×\")","v":"×"}]
[null,null,null,null,null,null,null,null,"ケ","重金属",null,{"$f":"IF(金属利用の歴史!J27=金属利用の歴史・処理!J27,\"〇\",\"×\")","v":"×"}]

{"sheet":"金属の性質","index":4,"n_rows":20,"n_cols":12,"rows_kept":20,"cut":false,"hidden":false,"merged":[[3,2,11,7],[1,2,1,4]]}
[]
[null,null,"金属結晶の性質"]
[]
[null,1,"金属では、多数の原子が規則正しく配列して結晶をつくっている。このとき、各金属原子の電子（価電子）は、金属中を自由に動きまわることができる。このような電子を（ア）電子という。金属では、（ア）電子が原子どうしの結合に大きな役割をしている。このような（ア）電子による金属原子間の結合を（イ）結合という。金属は金属光沢を示す。（ウ）伝導性や熱伝導性が大きい。これらの性質は、金属中の（ア）電子が移動するときに、電気や熱のエネルギーが運ばれることによる。金属は比較的自由に変形させることができる。金属を薄く広げることができる性質を（エ）性、金属を長く延ばすことができる性質を（オ）性という。\n",null,null,null,null,null,"得点",{"$f":"COUNTIF(L6:L20,\"〇\")","v":0},null,"/12"]
[]
[null,null,null,null,null,null,null,null,"ア",null,null,{"$f":"金属の性質・処理!L6","v":"×"}]
[null,null,null,null,null,null,null,null,"イ",null,null,{"$f":"金属の性質・処理!L7","v":"×"}]
[null,null,null,null,null,null,null,null,"ウ",null,null,{"$f":"金属の性質・処理!L8","v":"×"}]
[null,null,null,null,null,null,null,null,"エ",null,null,{"$f":"金属の性質・処理!L9","v":"×"}]
[null,null,null,null,null,null,null,null,"オ",null,null,{"$f":"金属の性質・処理!L10","v":"×"}]
[]
[]
[]
[null,2,null,null,null,null,null,null,"ア",null,null,{"$f":"金属の性質・処理!L14","v":"×"}]
[null,null,null,null,null,null,null,null,"イ",null,null,{"$f":"金属の性質・処理!L15","v":"×"}]
[null,null,null,null,null,null,null,null,"ウ",null,null,{"$f":"金属の性質・処理!L16","v":"×"}]
[null,null,null,null,null,null,null,null,"エ",null,null,{"$f":"金属の性質・処理!L17","v":"×"}]
[null,null,null,null,null,null,null,null,"オ",null,null,{"$f":"金属の性質・処理!L18","v":"×"}]
[null,null,null,null,null,null,null,null,"カ",null,null,{"$f":"金属の性質・処理!L19","v":"×"}]
[null,null,null,null,null,null,null,null,"キ",null,null,{"$f":"金属の性質・処理!L20","v":"×"}]

{"sheet":"金属の性質・処理","index":5,"n_rows":20,"n_cols":18,"rows_kept":20,"cut":false,"hidden":true,"merged":[[1,2,1,4],[3,2,11,7]]}
[]
[null,null,"金属結晶の性質"]
[]
[null,1,"金属では、多数の原子が規則正しく配列して結晶をつくっている。このとき、各金属原子の電子（価電子）は、金属中を自由に動きまわることができる。このような電子を（ア）電子という。金属では、（ア）電子が原子どうしの結合に大きな役割をしている。このような（ア）電子による金属原子間の結合を（イ）結合という。金属は金属光沢を示す。（ウ）伝導性や熱伝導性が大きい。これらの性質は、金属中の（ア）電子が移動するときに、電気や熱のエネルギーが運ばれることによる。金属は比較的自由に変形させることができる。金属を薄く広げることができる性質を（エ）性、金属を長く延ばすことができる性質を（オ）性という。\n",null,null,null,null,null,"得点",{"$f":"COUNTIF(L6:L37,\"〇\")","v":0},null,"/11"]
[]
[null,null,null,null,null,null,null,null,"ア","自由",null,{"$f":"IF(金属の性質!J6=金属の性質・処理!J6,\"〇\",\"×\")","v":"×"},null,"自由","金属","電気","展性","延性"]
[null,null,null,null,null,null,null,null,"イ","金属",null,{"$f":"IF(金属の性質!J7=金属の性質・処理!J7,\"〇\",\"×\")","v":"×"}]
[null,null,null,null,null,null,null,null,"ウ","電気",null,{"$f":"IF(金属の性質!J8=金属の性質・処理!J8,\"〇\",\"×\")","v":"×"}]
[null,null,null,null,null,null,null,null,"エ","展性",null,{"$f":"IF(金属の性質!J9=金属の性質・処理!J9,\"〇\",\"×\")","v":"×"}]
[null,null,null,null,null,null,null,null,"オ","延性",null,{"$f":"IF(金属の性質!J10=金属の性質・処理!J10,\"〇\",\"×\")","v":"×"}]
[]
[]
[]
[null,2,null,null,null,null,null,null,"ア","陽子",null,{"$f":"IF(金属の性質!J14=金属の性質・処理!J14,\"〇\",\"×\")","v":"×"},null,"陽子","中性子","電子","質量数","原子番号"]
[null,null,null,null,null,null,null,null,"イ","中性子",null,{"$f":"IF(金属の性質!J15=金属の性質・処理!J15,\"〇\",\"×\")","v":"×"}]
[null,null,null,null,null,null,null,null,"ウ","電子",null,{"$f":"IF(金属の性質!J16=金属の性質・処理!J16,\"〇\",\"×\")","v":"×"}]
[null,null,null,null,null,null,null,null,"エ","質量数",null,{"$f":"IF(金属の性質!J17=金属の性質・処理!J17,\"〇\",\"×\")","v":"×"}]
[null,null,null,null,null,null,null,null,"オ","原子番号",null,{"$f":"IF(金属の性質!J18=金属の性質・処理!J18,\"〇\",\"×\")","v":"×"}]
[null,null,null,null,null,null,null,null,"カ","中性子",null,{"$f":"IF(金属の性質!J19=金属の性質・処理!J19,\"〇\",\"×\")","v":"×"}]
[null,null,null,null,null,null,null,null,"キ","陽子",null,{"$f":"IF(金属の性質!J20=金属の性質・処理!J20,\"〇\",\"×\")","v":"×"}]

{"sheet":"身のまわりの金属","index":6,"n_rows":22,"n_cols":12,"rows_kept":22,"cut":false,"hidden":false,"merged":[[1,2,1,4],[3,2,11,7],[14,2,31,7]]}
[]
[null,null,"身のまわり金属と製錬"]
[]
[null,1,"鉄 --- 鉄Fe は、（①）て、強く、（②）で加工しやすいため、鉄道や船舶、建築物から日用品まで幅ひろく利用されている。鉄は（③）に引き寄せられる性質をもつ。\n銅 --- 10円硬貨の主成分である銅Cu は、古くから利用されてきた金属である。（④）や電気をよく伝えるため、調理器具や電気製品などに使われている。（⑤）作用もあり、蛇口やドアノブなどにも使われている。\nアルミニウム ---（⑥）円硬貨にも使われているアルミニウムAl は、鉄や銅より（⑦）く、新幹線の車体や航空機など、軽量化のための材料として用いられる。表面が（⑧）化されると内部が保護され、内部までさびにくい。\n",null,null,null,null,null,"得点",{"$f":"COUNTIF(L6:L23,\"〇\")","v":0},null,"/16"]
[]
[null,null,null,null,null,null,null,null,"①",null,null,{"$f":"身のまわりの金属・処理!L6","v":"×"}]
[null,null,null,null,null,null,null,null,"②",null,null,{"$f":"身のまわりの金属・処理!L7","v":"×"}]
[null,null,null,null,null,null,null,null,"③",null,null,{"$f":"身のまわりの金属・処理!L8","v":"×"}]
[null,null,null,null,null,null,null,null,"④",null,null,{"$f":"身のまわりの金属・処理!L9","v":"×"}]
[null,null,null,null,null,null,null,null,"⑤",null,null,{"$f":"身のまわりの金属・処理!L10","v":"×"}]
[null,null,null,null,null,null,null,null,"⓺",null,null,{"$f":"身のまわりの金属・処理!L11","v":"×"}]
[null,null,null,null,null,null,null,null,"⑦",null,null,{"$f":"身のまわりの金属・処理!L12","v":"×"}]
[null,null,null,null,null,null,null,null,"⑧",null,null,{"$f":"身のまわりの金属・処理!L13","v":"×"}]
[]
[null,2,"（１）金属は、自然界で鉱物として岩石に含まれる。人間に有用な鉱物を含む岩石を（⑨）という。\n（２）金Au などは単体のまま鉱石として産出するが、多くの金属は化合物として鉱石に含まれる。\n金属を利用するためには鉱石から金属を取り出す（⑩）が必要である。　\n（３）鉄の製錬　\n鉄鉱石、コークス、石灰岩を溶鉱炉で高温にすると、酸化物が還元され数％の炭素を含んだ（⑪）が得られる。その後、銑鉄を転炉に移し、酸素を吹き込むと、炭素の含有量が減り、硬い（⑫）が得られる。\n（４）銅の製造（電解精錬）\n溶鉱炉や転炉を用いて黄銅鉱から鉄や硫黄を取り除くと、純度約99％の（⑬）が得られる。これを電気分解することによって純度99.99％の（⑭）を得ている。\n（５）アルミニウム（溶融塩電解）\nアルミニウムは、ボーキサイトからつくられる（⑮）を高温で融解した（⑯）に溶かし、それを電気分解する方法（溶融塩電解）によって得られる。アルミニウムをつくる製錬で消費される電気エネルギーはとても大きいため、アルミニウムはリサイクルすることが重要である。\n",null,null,null,null,null,"⑨",null,null,{"$f":"身のまわりの金属・処理!L15","v":"×"}]
[null,null,null,null,null,null,null,null,"⑩",null,null,{"$f":"身のまわりの金属・処理!L16","v":"×"}]
[null,null,null,null,null,null,null,null,"⑪",null,null,{"$f":"身のまわりの金属・処理!L17","v":"×"}]
[null,null,null,null,null,null,null,null,"⑫",null,null,{"$f":"身のまわりの金属・処理!L18","v":"×"}]
[null,null,null,null,null,null,null,null,"⑬",null,null,{"$f":"身のまわりの金属・処理!L19","v":"×"}]
[null,null,null,null,null,null,null,null,"⑭",null,null,{"$f":"身のまわりの金属・処理!L20","v":"×"}]
[null,null,null,null,null,null,null,null,"⑮",null,null,{"$f":"身のまわりの金属・処理!L21","v":"×"}]
[null,null,null,null,null,null,null,null,"⑯",null,null,{"$f":"身のまわりの金属・処理!L22","v":"×"}]

{"sheet":"身のまわりの金属・処理","index":7,"n_rows":22,"n_cols":21,"rows_kept":22,"cut":false,"hidden":true,"merged":[[1,2,1,4],[3,2,11,7],[14,2,31,7]]}
[]
[null,null,"身のまわり金属と製錬"]
[]
[null,1,"鉄 --- 鉄Fe は、（①）て、強く、（②）で加工しやすいため、鉄道や船舶、建築物から日用品まで幅ひろく利用されている。鉄は（③）に引き寄せられる性質をもつ。\n銅 --- 10円硬貨の主成分である銅Cu は、古くから利用されてきた金属である。（④）や電気をよく伝えるため、調理器具や電気製品などに使われている。（⑤）作用もあり、蛇口やドアノブなどにも使われている。\nアルミニウム ---（⑥）円硬貨にも使われているアルミニウムAl は、鉄や銅より（⑦）く、新幹線の車体や航空機など、軽量化のための材料として用いられる。表面が（⑧）化されると内部が保護され、内部までさびにくい。\n",null,null,null,null,null,"得点",{"$f":"COUNTIF(L6:L17,\"〇\")","v":0},null,"/16"]
[]
[null,null,null,null,null,null,null,null,"①","硬く",null,{"$f":"IF(身のまわりの金属!J6=身のまわりの金属・処理!J6,\"〇\",\"×\")","v":"×"},null,"硬く","安価","磁石","熱","抗菌",1,"軽","酸化"]
[null,null,null,null,null,null,null,null,"②","安価",null,{"$f":"IF(身のまわりの金属!J7=身のまわりの金属・処理!J7,\"〇\",\"×\")","v":"×"}]
[null,null,null,null,null,null,null,null,"③","磁石",null,{"$f":"IF(身のまわりの金属!J8=身のまわりの金属・処理!J8,\"〇\",\"×\")","v":"×"}]
[null,null,null,null,null,null,null,null,"④","熱",null,{"$f":"IF(身のまわりの金属!J9=身のまわりの金属・処理!J9,\"〇\",\"×\")","v":"×"}]
[null,null,null,null,null,null,null,null,"⑤","抗菌",null,{"$f":"IF(身のまわりの金属!J10=身のまわりの金属・処理!J10,\"〇\",\"×\")","v":"×"}]
[null,null,null,null,null,null,null,null,"⓺",1,null,{"$f":"IF(身のまわりの金属!J11=身のまわりの金属・処理!J11,\"〇\",\"×\")","v":"×"}]
[null,null,null,null,null,null,null,null,"⑦","軽",null,{"$f":"IF(身のまわりの金属!J12=身のまわりの金属・処理!J12,\"〇\",\"×\")","v":"×"}]
[null,null,null,null,null,null,null,null,"⑧","酸化",null,{"$f":"IF(身のまわりの金属!J13=身のまわりの金属・処理!J13,\"〇\",\"×\")","v":"×"}]
[]
[null,2,"（１）金属は、自然界で鉱物として岩石に含まれる。人間に有用な鉱物を含む岩石を（⑨）という。\n（２）金Au などは単体のまま鉱石として産出するが、多くの金属は化合物として鉱石に含まれる。\n金属を利用するためには鉱石から金属を取り出す（⑩）が必要である。　\n（３）鉄の製錬　\n鉄鉱石、コークス、石灰岩を溶鉱炉で高温にすると、酸化物が還元され数％の炭素を含んだ（⑪）が得られる。その後、銑鉄を転炉に移し、酸素を吹き込むと、炭素の含有量が減り、硬い（⑫）が得られる。\n（４）銅の製造（電解精錬）\n溶鉱炉や転炉を用いて黄銅鉱から鉄や硫黄を取り除くと、純度約99％の（⑬）が得られる。これを電気分解することによって純度99.99％の（⑭）を得ている。\n（５）アルミニウム（溶融塩電解）\nアルミニウムは、ボーキサイトかつくられる（⑮）を高温で融解した（⑯）に溶かし、それを電気分解する方法（溶融塩電解）によって得られる。アルミニウムをつくる製錬で消費される電気エネルギーはとても大きいため、アルミニウムはリサイクルすることが重要である。\n",null,null,null,null,null,"⑨","鉱石",null,{"$f":"IF(身のまわりの金属!J15=身のまわりの金属・処理!J15,\"〇\",\"×\")","v":"×"},null,"鉱石","製錬","銑鉄","鋼","粗銅","純銅","アルミナ","氷晶石"]
[null,null,null,null,null,null,null,null,"⑩","製錬",null,{"$f":"IF(身のまわりの金属!J16=身のまわりの金属・処理!J16,\"〇\",\"×\")","v":"×"}]
[null,null,null,null,null,null,null,null,"⑪","銑鉄",null,{"$f":"IF(身のまわりの金属!J17=身のまわりの金属・処理!J17,\"〇\",\"×\")","v":"×"}]
[null,null,null,null,null,null,null,null,"⑫","鋼",null,{"$f":"IF(身のまわりの金属!J18=身のまわりの金属・処理!J18,\"〇\",\"×\")","v":"×"}]
[null,null,null,null,null,null,null,null,"⑬","粗銅",null,{"$f":"IF(身のまわりの金属!J19=身のまわりの金属・処理!J19,\"〇\",\"×\")","v":"×"}]
[null,null,null,null,null,null,null,null,"⑭","純銅",null,{"$f":"IF(身のまわりの金属!J20=身のまわりの金属・処理!J20,\"〇\",\"×\")","v":"×"}]
[null,null,null,null,null,null,null,null,"⑮","アルミナ",null,{"$f":"IF(身のまわりの金属!J21=身のまわりの金属・処理!J21,\"〇\",\"×\")","v":"×"}]
[null,null,null,null,null,null,null,null,"⑯","氷晶石",null,{"$f":"IF(身のまわりの金属!J22=身のまわりの金属・処理!J22,\"〇\",\"×\")","v":"×"}]

{"sheet":"さび","index":8,"n_rows":24,"n_cols":12,"rows_kept":24,"cut":false,"hidden":false,"merged":[[20,2,36,7],[1,2,1,4],[3,2,18,7]]}
[]
[null,null,"金属のさびとその防止"]
[]
[null,1,"（１）自転車のチェーンやハンドルがさびると、変色して動きが悪くなる。\n　これは金属が空気中の(①)や水と反応して化合物になるためである。\n（２）金属がさびる変化を（②）という。\n鉄：\n鉄Feは、特にさびやすい金属である。鉄でできた釘などがさびると、\n酸化物ができて一般に表面が（③）色となり、光沢は失われる。\n銅：\n銅Cuは、比較的安定な金属であるが、空気中に放置すると表面が徐々に\n酸化され、黒色の酸化銅ができる。さらに水分や二酸化炭素に触れ続けると、長い時間をかけて緑色のさび（④））に変化する。酸化銅や（④）は\n安定な膜としてはたらき、内部は保護される。\nアルミニウム：\nアルミニウムAlの表面は、空気中の酸素と反応してできた酸化物の薄い\n膜で覆われている。このような酸化物の膜は（⑤）被膜とよばれ、内部を\n保護する。より効果的に保護するために人工的に（⑤）被膜を形成させた\nものを（⑥）という。\n",null,null,null,null,null,"得点",{"$f":"COUNTIF(L6:L24,\"〇\")","v":0},null,"/10"]
[]
[null,null,null,null,null,null,null,null,"①",null,null,{"$f":"さび・処理!L6","v":"×"}]
[null,null,null,null,null,null,null,null,"②",null,null,{"$f":"さび・処理!L7","v":"×"}]
[null,null,null,null,null,null,null,null,"③",null,null,{"$f":"さび・処理!L8","v":"×"}]
[null,null,null,null,null,null,null,null,"④",null,null,{"$f":"さび・処理!L9","v":"×"}]
[null,null,null,null,null,null,null,null,"⑤",null,null,{"$f":"さび・処理!L10","v":"×"}]
[null,null,null,null,null,null,null,null,"⓺",null,null,{"$f":"さび・処理!L11","v":"×"}]
[]
[]
[]
[]
[]
[]
[]
[]
[]
[null,2,"（１）さびを防ぐ方法には、ペンキなどの塗料を塗る塗装、別の金属の膜を\nつくるメッキなどがある。代表的なメッキには次のようなものがある。\nブリキ：\n鉄の表面に（⑦）Snをメッキしたものをブリキという。（⑦）は鉄より\nさびにくいので、ブリキは鉄のままよりさびにくくなる。しかし、ブリキに傷がついて鉄が表面にでると、鉄は（⑦）よりイオンになりやすいため、鉄が先にさびていく。そのため、ブリキは傷がつきにくい缶詰の内側に利用される。\nトタン：\n鉄の表面に（⑧）Znをメッキしたものをトタンという。（⑧）は空気中で表面が酸化されて被膜をつくるため、トタンは鉄が表面に出ても、鉄よりも（⑧）のほうがイオンになりやすいため、（⑧）が先にさびて鉄は保護される。そのため、トタンは水にぬれやすい屋外の建材などに利用される。\nC. 合金\n（１） 金属の性質を変えるために、別の金属を混ぜて合金にする方法。\n（２） ステンレス鋼は、鉄Feに（⑨）Crと（⑩）Niを加えた合金で、表面におもに（⑨）の酸化被膜ができる\nため、さびにくくなる。台所用品や建材、工具など幅広く利用される。\n",null,null,null,null,null,"⑦",null,null,{"$f":"さび・処理!L21","v":"×"}]
[null,null,null,null,null,null,null,null,"⑧",null,null,{"$f":"さび・処理!L22","v":"×"}]
[null,null,null,null,null,null,null,null,"⑨",null,null,{"$f":"さび・処理!L23","v":"×"}]
[null,null,null,null,null,null,null,null,"⑩",null,null,{"$f":"さび・処理!L24","v":"×"}]

{"sheet":"さび・処理","index":9,"n_rows":24,"n_cols":19,"rows_kept":24,"cut":false,"hidden":true,"merged":[[1,2,1,4],[3,2,18,7],[20,2,36,7]]}
[]
[null,null,"金属のさびとその防止"]
[]
[null,1,"（１）自転車のチェーンやハンドルがさびると、変色して動きが悪くなる。\n　これは金属が空気中の(①)や水と反応して化合物になるためである。\n（２）金属がさびる変化を（②）という。\n鉄：\n鉄Feは、特にさびやすい金属である。鉄でできた釘などがさびると、\n酸化物ができて一般に表面が（③）色となり、光沢は失われる。\n銅：\n銅Cuは、比較的安定な金属であるが、空気中に放置すると表面が徐々に\n酸化され、黒色の酸化銅ができる。さらに水分や二酸化炭素に触れ続けると、長い時間をかけて緑色のさび（④））に変化する。酸化銅や（④）は\n安定な膜としてはたらき、内部は保護される。\nアルミニウム：\nアルミニウムAlの表面は、空気中の酸素と反応してできた酸化物の薄い\n膜で覆われている。このような酸化物の膜は（⑤）被膜とよばれ、内部を\n保護する。より効果的に保護するために人工的に（⑤）被膜を形成させた\nものを（⑥）という。\n",null,null,null,null,null,"得点",{"$f":"COUNTIF(L6:L34,\"〇\")","v":0},null,"/16"]
[]
[null,null,null,null,null,null,null,null,"①","酸素",null,{"$f":"IF(さび!J6=さび・処理!J6,\"〇\",\"×\")","v":"×"},null,"酸素","腐食","赤褐","緑青","酸化","アルマイト"]
[null,null,null,null,null,null,null,null,"②","腐食",null,{"$f":"IF(さび!J7=さび・処理!J7,\"〇\",\"×\")","v":"×"}]
[null,null,null,null,null,null,null,null,"③","赤褐",null,{"$f":"IF(さび!J8=さび・処理!J8,\"〇\",\"×\")","v":"×"}]
[null,null,null,null,null,null,null,null,"④","緑青",null,{"$f":"IF(さび!J9=さび・処理!J9,\"〇\",\"×\")","v":"×"}]
[null,null,null,null,null,null,null,null,"⑤","酸化",null,{"$f":"IF(さび!J10=さび・処理!J10,\"〇\",\"×\")","v":"×"}]
[null,null,null,null,null,null,null,null,"⓺","アルマイト",null,{"$f":"IF(さび!J11=さび・処理!J11,\"〇\",\"×\")","v":"×"}]
[]
[]
[]
[]
[]
[]
[]
[]
[]
[null,2,"（１）さびを防ぐ方法には、ペンキなどの塗料を塗る塗装、別の金属の膜を\nつくるメッキなどがある。代表的なメッキには次のようなものがある。\nブリキ：\n鉄の表面に（⑦）Snをメッキしたものをブリキという。（⑦）は鉄より\nさびにくいので、ブリキは鉄のままよりさびにくくなる。しかし、ブリキに傷がついて鉄が表面にでると、鉄は（⑦）よりイオンになりやすいため、鉄が先にさびていく。そのため、ブリキは傷がつきにくい缶詰の内側に利用される。\nトタン：\n鉄の表面に（⑧）Znをメッキしたものをトタンという。（⑧）は空気中で表面が酸化されて被膜をつくるため、トタンは鉄が表面に出ても、鉄よりも（⑧）のほうがイオンになりやすいため、（⑧）が先にさびて鉄は保護される。そのため、トタンは水にぬれやすい屋外の建材などに利用される。\nC. 合金\n（１） 金属の性質を変えるために、別の金属を混ぜて合金にする方法。\n（２） ステンレス鋼は、鉄Feに（⑨）Crと（⑩）Niを加えた合金で、表面におもに（⑨）の酸化被膜ができる\nため、さびにくくなる。台所用品や建材、工具など幅広く利用される。\n",null,null,null,null,null,"⑦","スズ",null,{"$f":"IF(さび!J21=さび・処理!J21,\"〇\",\"×\")","v":"×"},null,"スズ","亜鉛","クロム","ニッケル"]
[null,null,null,null,null,null,null,null,"⑧","亜鉛",null,{"$f":"IF(さび!J22=さび・処理!J22,\"〇\",\"×\")","v":"×"}]
[null,null,null,null,null,null,null,null,"⑨","クロム",null,{"$f":"IF(さび!J23=さび・処理!J23,\"〇\",\"×\")","v":"×"}]
[null,null,null,null,null,null,null,null,"⑩","ニッケル",null,{"$f":"IF(さび!J24=さび・処理!J24,\"〇\",\"×\")","v":"×"}]